bitfinex/quotes_SOLUSD_20250821
["timestamp","ask_amount","ask_price","bid_price","bid_amount"]
[1755750193399,38.0,187.79,187.76,4.38888628]
[1755750193712,38.66,187.79,187.75,0.28432314]
[1755750193917,38.66,187.79,187.75,4.01320942]
[1755750194240,38.66,187.79,187.75,4.67320942]
[1755750194534,0.66,187.81,187.78,4.01320942]
[1755750195800,0.66,187.8,187.78,0.28432314]
[1755750196002,4.38888628,187.8,187.78,0.28432314]
[1755750196202,0.66,187.79,187.78,0.28432314]
[1755750200827,41.58888628,187.81,187.78,0.28432314]
[1755750201036,0.66,187.8,187.78,0.28432314]
[1755750201532,41.58888628,187.81,187.78,0.28432314]
[1755750201733,0.66,187.79,187.78,0.28432314]
[1755750203609,41.58888628,187.81,187.78,0.28432314]
[1755750203933,0.66,187.8,187.78,0.28432314]
[1755750206425,0.66,187.79,187.78,0.28432314]
[1755750206812,37.76,187.81,187.78,0.28432314]
[1755750207032,38.42,187.81,187.78,0.28432314]
[1755750207409,37.76,187.81,187.78,0.94432314]
[1755750207709,37.76,187.81,187.78,4.67320942]
[1755750208202,38.42,187.81,187.78,4.01320942]
[1755750208410,3.8675,187.82,187.77,4.01320942]
[1755750208610,41.6275,187.82,187.8,3.72888628]
[1755750209038,41.6275,187.82,187.81,0.28432314]
[1755750209340,3.8675,187.82,187.81,0.28432314]
[1755750210120,4.5275,187.82,187.81,0.28432314]
[1755750210841,4.5275,187.82,187.8,26.0]
[1755750210842,8.25638628,187.82,187.8,26.0]
[1755750211209,4.5275,187.82,187.8,26.0]
[1755750211441,0.66,187.81,187.8,26.0]
[1755750211637,4.38888628,187.81,187.8,26.0]
[1755750212134,4.38888628,187.81,187.79,26.0]
[1755750212349,4.38888628,187.8,187.78,0.31432314]
[1755750212732,0.66,187.79,187.78,0.31432314]
[1755750213635,0.66,187.79,187.78,0.03]
[1755750215119,4.38888628,187.79,187.78,0.03]
[1755750215542,3.72888628,187.79,187.78,0.03]
[1755750215714,4.38888628,187.79,187.78,0.03]
[1755750216238,0.66,187.79,187.78,0.03]
[1755750217944,4.38888628,187.79,187.78,0.03]
[1755750219639,0.72,187.83,187.78,0.03]
[1755750219823,42.14888628,187.82,187.78,0.03]
[1755750220022,0.06,187.83,187.78,0.03]
[1755750220243,38.42,187.82,187.78,3.75888628]
[1755750220443,0.66,187.81,187.78,3.75888628]
[1755750220646,0.66,187.81,187.78,4.41888628]
[1755750220924,0.66,187.8,187.78,0.03]
[1755750221139,4.38888628,187.8,187.78,0.03]
[1755750221444,0.66,187.8,187.78,0.03]
[1755750221646,0.66,187.79,187.78,0.03]
[1755750224440,4.38888628,187.79,187.78,0.03]
[1755750226740,4.53104785,187.79,187.78,0.03]
[1755750227055,44.12664186,187.79,187.78,0.03]
[1755750227261,47.68557839,187.79,187.78,0.03]
[1755750227551,85.44557839,187.79,187.78,0.03]
[1755750227931,0.14216157,187.77,187.76,0.03]
[1755750228250,17.46664186,187.77,187.76,0.03]
[1755750228458,18.12664186,187.77,187.76,0.03]
[1755750235142,21.85552814,187.77,187.76,0.03]
[1755750235745,26.0,187.72,187.71,0.03]
[1755750236045,81.18664186,187.72,187.71,0.03]
[1755750236244,81.83664186,187.72,187.71,0.03]
[1755750237945,0.14216157,187.73,187.71,0.03]
[1755750238160,68.11888628,187.72,187.71,0.03]
[1755750238374,42.11888628,187.72,187.71,0.03]
[1755750238545,37.74,187.72,187.71,0.03]
[1755750238741,41.46888628,187.72,187.71,0.03]
[1755750240449,3.72888628,187.72,187.71,0.03]
[1755750240656,41.46888628,187.72,187.71,0.69]
[1755750240871,41.46888628,187.72,187.71,0.03]
[1755750241044,42.11888628,187.72,187.71,0.03]
[1755750241245,41.46888628,187.72,187.71,0.03]
[1755750242485,2.78018413,187.79,187.71,4.41888628]
[1755750242648,3.72888628,187.77,187.72,0.66]
[1755750242853,3.72888628,187.75,187.72,0.28432314]
[1755750243183,3.72888628,187.75,187.73,0.66]
[1755750243474,3.72888628,187.75,187.72,0.28432314]
[1755750243475,3.72888628,187.75,187.74,0.66]
[1755750243659,41.46888628,187.76,187.74,0.66]
[1755750244278,3.72888628,187.75,187.71,0.03]
[1755750244577,3.72888628,187.72,187.71,0.03]
[1755750244746,41.48888628,187.72,187.71,0.03]
[1755750246060,42.13888628,187.72,187.71,0.03]
[1755750246373,41.48888628,187.72,187.71,0.03]
[1755750248150,3.72888628,187.72,187.71,0.03]
[1755750248355,41.46888628,187.72,187.71,0.03]
[1755750249653,0.06,187.79,187.72,0.28432314]
[1755750249857,37.9,187.79,187.75,3.72888628]
[1755750250087,37.9,187.79,187.76,0.66]
[1755750250688,41.62888628,187.79,187.76,0.66]
[1755750251181,37.84,187.78,187.76,0.66]
[1755750251576,0.06,187.79,187.77,0.66]
[1755750251962,3.78888628,187.79,187.75,0.94432314]
[1755750252286,3.78888628,187.79,187.76,0.66]
[1755750252479,0.06,187.79,187.77,0.66]
[1755750252876,0.06,187.79,187.75,0.28432314]
[1755750253089,3.78888628,187.79,187.77,0.66]
[1755750253663,3.78888628,187.79,187.78,0.66]
[1755750253989,0.06,187.79,187.78,0.66]
[1755750256088,0.06,187.79,187.77,4.013209]
[1755750256295,0.06,187.79,187.77,4.673209]
[1755750256795,0.06,187.79,187.77,4.013209]
[1755750257304,0.06,187.79,187.77,4.673209]
[1755750257682,0.06,187.79,187.77,4.013209]
[1755750257875,0.06,187.79,187.75,0.28432314]
[1755750258077,0.06,187.79,187.76,0.66]
[1755750258370,0.06,187.79,187.77,0.66]
[1755750259304,0.06,187.79,187.78,0.66]
[1755750259679,0.06,187.79,187.77,0.66]
[1755750259979,0.06,187.79,187.77,4.67320942]
[1755750260188,0.06,187.79,187.78,4.01320942]
[1755750260379,0.06,187.79,187.78,4.67320942]
[1755750260704,0.06,187.79,187.78,0.94432314]
[1755750260881,0.06,187.79,187.78,4.67320942]
[1755750262906,0.06,187.79,187.78,3.72888628]
[1755750265079,0.06,187.79,187.78,4.29320942]
[1755750266804,0.06,187.79,187.78,97.68880343]
[1755750266983,0.06,187.79,187.78,103.01418419]
[1755750267508,0.06,187.83,187.78,103.01418419]
[1755750267509,0.06,187.83,187.82,39.87991715]
[1755750267712,0.06,187.83,187.82,127.13768971]
[1755750268015,0.06,187.83,187.82,47.61768971]
[1755750268213,0.06,187.83,187.82,49.75119371]
[1755750268425,0.06,187.85,187.83,0.28432314]
[1755750268609,0.06,187.85,187.84,4.29320942]
[1755750269508,0.06,187.85,187.84,17.88880343]
[1755750269718,0.06,187.85,187.84,23.35464472]
[1755750269913,0.06,187.87,187.86,39.59559401]
[1755750270227,0.06,187.87,187.86,43.60880343]
[1755750270517,0.06,187.87,187.86,43.88880343]
[1755750271217,0.06,187.87,187.86,13.87991715]
[1755750271418,0.06,187.87,187.86,17.88880343]
[1755750273017,0.06,187.87,187.86,17.60880343]
[1755750273735,0.06,187.87,187.86,4.01320942]
[1755750274216,0.72,187.87,187.85,37.82]
[1755750274424,0.06,187.87,187.86,0.28432314]
[1755750275143,0.72,187.87,187.86,0.28432314]
[1755750275520,0.06,187.87,187.86,0.28432314]
[1755750276337,0.06,187.87,187.86,4.01320942]
[1755750276725,0.06,187.87,187.86,0.28432314]
[1755750277126,0.06,187.87,187.86,4.01321014]
[1755750278345,0.06,187.87,187.86,7.74209642]
[1755750280562,0.72,187.87,187.86,7.74209642]
[1755750280763,0.06,187.87,187.86,7.74209642]
[1755750282162,3.78888628,187.87,187.86,4.01321014]
[1755750282528,3.78888628,187.87,187.86,83.81321014]
[1755750283068,0.06,187.87,187.86,4.01321014]
[1755750283250,0.06,187.87,187.86,41.79321014]
[1755750283758,4.44888628,187.87,187.86,41.79321014]
[1755750284139,3.78888628,187.87,187.86,41.79321014]
[1755750285920,0.06,187.87,187.86,41.79321014]
[1755750286120,0.06,187.87,187.86,55.38880415]
[1755750286422,0.06,187.87,187.86,55.66880415]
[1755750287286,0.06,187.87,187.86,55.38880415]
[1755750288380,0.06,187.87,187.86,135.18880415]
[1755750291878,0.06,187.87,187.86,135.46880415]
[1755750292074,0.06,187.87,187.86,135.18880415]
[1755750294182,0.06,187.87,187.86,135.46880415]
[1755750294388,0.06,187.87,187.86,135.18880415]
[1755750298897,4.46888628,187.87,187.86,83.81321014]
[1755750299101,4.46888628,187.87,187.86,117.72432314]
[1755750299289,4.46888628,187.87,187.85,0.03]
[1755750299617,4.40888628,187.86,187.85,0.03]
[1755750300517,7.45777256,187.84,187.83,0.03]
[1755750300684,3.72888628,187.84,187.83,0.03]
[1755750301086,4.40888628,187.84,187.83,0.03]
[1755750303805,8.13777256,187.84,187.83,0.03]
[1755750306405,4.40888628,187.84,187.83,0.03]
[1755750309229,8.13777256,187.84,187.83,0.03]
[1755750310199,8.13777256,187.84,187.81,0.03]
[1755750310424,3.72888628,187.82,187.81,0.03]
[1755750310928,4.40888628,187.82,187.81,0.03]
[1755750311832,13.73775558,187.81,187.72,0.03]
[1755750312000,3.72888628,187.73,187.72,0.03]
[1755750312400,4.40888628,187.73,187.72,0.03]
[1755750313899,3.72888628,187.73,187.72,0.03]
[1755750314101,4.40888628,187.73,187.72,0.03]
[1755750316712,3.72888628,187.73,187.72,0.03]
[1755750318836,4.40888628,187.73,187.72,0.03]
[1755750323418,3.72888628,187.73,187.72,0.03]
[1755750324206,4.40888628,187.73,187.72,0.03]
[1755750326032,3.72888628,187.73,187.72,0.03]
[1755750326232,4.40888628,187.73,187.72,0.03]
[1755750334849,18.00448029,187.73,187.72,0.03]
[1755750335721,55.64448029,187.73,187.72,0.03]
[1755750340230,81.64448029,187.73,187.72,0.03]
[1755750340443,13.59559401,187.72,187.71,0.03]
[1755750340627,17.32448029,187.72,187.71,0.03]
[1755750340828,18.00448029,187.72,187.71,0.03]
[1755750343044,39.59559401,187.69,187.68,0.03]
[1755750343244,80.96448029,187.69,187.68,0.03]
[1755750343430,81.64448029,187.69,187.68,0.03]
[1755750345328,81.66448029,187.69,187.68,0.03]
[1755750347541,3.72888628,187.69,187.68,0.03]
[1755750347755,41.38888628,187.69,187.68,0.03]
[1755750348156,3.72888628,187.69,187.68,0.03]
[1755750348375,41.38888628,187.69,187.68,0.03]
[1755750350253,42.06888628,187.69,187.68,0.03]
[1755750350667,41.38888628,187.69,187.68,0.03]
[1755750350839,37.66,187.69,187.68,0.03]
[1755750351041,41.38888628,187.69,187.68,0.03]
[1755750351336,42.06888628,187.69,187.68,0.03]
[1755750352669,37.66,187.69,187.68,0.03]
[1755750352834,41.38888628,187.69,187.68,0.03]
[1755750353254,42.10888628,187.69,187.68,0.03]
[1755750355572,41.38888628,187.69,187.68,0.03]
[1755750356967,42.10888628,187.69,187.68,0.03]
[1755750357352,41.38888628,187.69,187.68,0.03]
[1755750358263,37.66,187.69,187.68,0.03]
[1755750358457,41.38888628,187.69,187.68,0.03]
[1755750359087,0.72,187.76,187.68,0.31]
[1755750359255,3.72888628,187.72,187.68,0.31]
[1755750359583,38.38,187.75,187.68,4.03888628]
[1755750359584,3.72888628,187.73,187.68,4.03888628]
[1755750359881,41.38888628,187.72,187.69,0.28]
[1755750360254,3.72888628,187.71,187.68,0.03]
[1755750360968,3.72888628,187.71,187.68,0.31]
[1755750361866,4.44888628,187.71,187.68,0.03]
[1755750362074,3.72888628,187.7,187.68,0.03]
[1755750362271,3.72888628,187.69,187.68,0.03]
[1755750363155,37.66,187.7,187.68,0.03]
[1755750363382,3.72888628,187.69,187.68,0.03]
[1755750363684,37.66,187.7,187.68,0.03]
[1755750363893,3.72888628,187.71,187.68,0.03]
[1755750364189,37.66,187.71,187.69,0.28]
[1755750364345,41.44888628,187.73,187.69,4.00888628]
[1755750364550,42.16888628,187.73,187.68,3.75888628]
[1755750364772,4.44888628,187.72,187.68,0.03]
[1755750365383,3.72888628,187.71,187.68,0.03]
[1755750365582,37.72,187.73,187.68,0.31]
[1755750365757,3.72888628,187.72,187.68,0.31]
[1755750366568,3.72888628,187.72,187.68,0.03]
[1755750366769,41.44888628,187.73,187.68,0.03]
[1755750367055,4.44888628,187.72,187.68,0.03]
[1755750368372,3.72888628,187.69,187.68,0.03]
[1755750369180,4.44888628,187.69,187.68,0.03]
[1755750373177,42.08888628,187.69,187.68,0.03]
[1755750374716,55.68448029,187.69,187.68,0.03]
[1755750375397,47.05336657,187.68,187.64,0.1]
[1755750375592,21.05336657,187.65,187.64,0.1]
[1755750375802,58.69336657,187.65,187.64,0.1]
[1755750376097,59.41336657,187.65,187.64,0.1]
[1755750376891,51.95559401,187.65,187.64,0.1]
[1755750377115,59.41336657,187.65,187.64,0.1]
[1755750378173,45.81777256,187.65,187.64,0.1]
[1755750378361,42.08888628,187.65,187.64,0.1]
[1755750378798,45.81777256,187.65,187.64,0.1]
[1755750379183,59.41336657,187.65,187.64,0.1]
[1755750381208,21.77336657,187.65,187.64,0.1]
[1755750381693,59.43336657,187.65,187.64,0.1]
[1755750389028,42.10888628,187.65,187.64,0.1]
[1755750389403,41.38888628,187.65,187.64,0.1]
[1755750391234,37.66,187.65,187.64,0.1]
[1755750391414,41.38888628,187.65,187.64,0.1]
[1755750391923,37.66,187.65,187.64,0.44]
[1755750392125,37.66,187.66,187.64,0.44]
[1755750392328,41.38888628,187.66,187.64,0.44]
[1755750392503,3.72888628,187.65,187.64,0.1]
[1755750393106,37.66,187.66,187.64,0.1]
[1755750393918,41.38888628,187.66,187.64,0.1]
[1755750395123,26.06,187.71,187.65,0.34]
[1755750395323,3.72888628,187.69,187.65,0.34]
[1755750395532,37.66,187.68,187.65,0.34]
[1755750396027,41.38888628,187.68,187.64,0.1]
[1755750396228,41.38888628,187.68,187.64,0.44]
[1755750396617,42.03888628,187.68,187.64,0.44]
[1755750397718,42.03888628,187.68,187.64,0.1]
[1755750400119,41.38888628,187.68,187.64,0.44]
[1755750400727,41.38888628,187.68,187.64,0.1]
[1755750400728,3.72888628,187.66,187.64,0.1]
[1755750400934,41.36888628,187.65,187.64,0.1]
[1755750401135,42.01888628,187.65,187.64,0.1]
[1755750401433,59.34336657,187.65,187.64,0.1]
[1755750402921,42.01888628,187.65,187.64,0.1]
[1755750403134,3.72888628,187.65,187.64,0.1]
[1755750403313,41.36888628,187.65,187.64,0.1]
[1755750403907,37.64,187.65,187.64,0.1]
[1755750404110,41.36888628,187.65,187.64,0.1]
[1755750404421,42.01888628,187.65,187.64,0.1]
[1755750405834,45.74777256,187.65,187.64,0.1]
[1755750407325,42.01888628,187.65,187.64,0.1]
[1755750408155,42.01888628,187.65,187.6,0.03]
[1755750408156,26.0,187.62,187.6,0.03]
[1755750408316,37.64,187.61,187.6,0.47]
[1755750408521,37.64,187.62,187.61,0.44]
[1755750408722,37.64,187.63,187.6,0.03]
[1755750408934,3.72888628,187.65,187.6,0.03]
[1755750409116,37.64,187.64,187.61,0.44]
[1755750409317,37.64,187.64,187.62,4.16888628]
[1755750409520,3.72888628,187.68,187.63,4.16888628]
[1755750409742,3.78888628,187.69,187.64,4.16888628]
[1755750409945,41.36888628,187.68,187.64,0.44]
[1755750410141,37.64,187.68,187.64,0.44]
[1755750410518,41.36888628,187.68,187.64,0.44]
[1755750411013,37.64,187.68,187.64,3.72888628]
[1755750411213,37.64,187.68,187.65,0.44]
[1755750412227,37.64,187.68,187.65,3.72888628]
[1755750412551,37.64,187.68,187.65,0.28432314]
[1755750413047,37.64,187.68,187.65,4.45320942]
[1755750413433,37.7,187.69,187.65,4.45320942]
[1755750413635,0.06,187.69,187.67,0.28432314]
[1755750414348,0.06,187.68,187.65,0.44]
[1755750414525,0.06,187.68,187.65,0.28432314]
[1755750416727,0.06,187.68,187.65,0.72432314]
[1755750417728,0.06,187.68,187.67,3.72888628]
[1755750417930,0.06,187.68,187.67,4.45320942]
[1755750420137,0.06,187.68,187.67,0.72432314]
[1755750420332,0.06,187.68,187.67,4.01320942]
[1755750420540,0.06,187.68,187.67,0.28432314]
[1755750420749,0.06,187.68,187.65,26.0]
[1755750421053,0.06,187.68,187.66,0.28432314]
[1755750422278,3.78888628,187.68,187.64,3.788886]
[1755750422452,3.72888628,187.66,187.64,0.03]
[1755750422842,0.65,187.65,187.64,0.03]
[1755750423229,0.06,187.68,187.64,4.48320942]
[1755750423426,0.06,187.68,187.67,4.01320942]
[1755750423939,0.06,187.68,187.67,4.45320942]
[1755750427152,0.06,187.68,187.67,6.58865042]
[1755750428370,0.06,187.68,187.67,6.14865042]
[1755750428536,0.06,187.68,187.67,6.58865042]
[1755750428736,0.06,187.68,187.67,6.14865042]
[1755750430059,0.06,187.68,187.67,6.58865042]
[1755750430845,0.06,187.68,187.67,6.14865042]
[1755750432044,0.06,187.68,187.67,2.41976414]
[1755750432235,4.43888628,187.68,187.64,105.83]
[1755750432438,3.72888628,187.67,187.64,79.83]
[1755750432633,4.37888628,187.66,187.64,81.966011]
[1755750432855,0.65,187.65,187.64,79.83]
[1755750433051,4.37888628,187.65,187.64,0.03]
[1755750436037,41.99888628,187.65,187.64,0.03]
[1755750437164,45.72777256,187.65,187.64,0.03]
[1755750438971,4.37888628,187.65,187.64,0.03]
[1755750439266,42.01888628,187.65,187.64,0.03]
[1755750440664,3.72888628,187.65,187.64,0.03]
[1755750440871,42.01888628,187.65,187.64,0.03]
[1755750441244,26.71,187.68,187.64,0.03]
[1755750441470,3.72888628,187.66,187.64,0.03]
[1755750441855,0.06,187.68,187.64,0.03]
[1755750442054,37.64,187.67,187.64,0.03]
[1755750442256,3.78888628,187.68,187.64,0.03]
[1755750442560,41.42888628,187.68,187.64,0.03]
[1755750442751,42.07888628,187.68,187.64,0.03]
[1755750443145,38.35,187.68,187.64,0.03]
[1755750443474,37.7,187.68,187.64,0.47]
[1755750443779,41.42888628,187.68,187.64,0.47]
[1755750444072,41.42888628,187.68,187.66,3.72888628]
[1755750444073,0.06,187.68,187.66,3.72888628]
[1755750444263,0.06,187.68,187.67,4.16888628]
[1755750444658,0.06,187.68,187.67,4.45320942]
[1755750445049,0.06,187.68,187.67,4.01320942]
[1755750445543,0.06,187.68,187.67,4.45320942]
[1755750445768,0.06,187.68,187.67,4.01320942]
[1755750446069,0.06,187.68,187.67,0.28432314]
[1755750446259,0.06,187.68,187.67,4.45320942]
[1755750447067,0.06,187.68,187.67,4.01320942]
[1755750448673,0.06,187.68,187.67,0.28432314]
[1755750448980,0.06,187.68,187.67,4.01320942]
[1755750453080,0.06,187.68,187.67,6.14887742]
[1755750456505,0.06,187.68,187.67,0.28432314]
[1755750456706,0.06,187.68,187.67,4.01320942]
[1755750458089,0.06,187.68,187.67,0.28432314]
[1755750458271,0.06,187.68,187.67,4.01320942]
[1755750460476,0.06,187.68,187.67,6.58887842]
[1755750460676,0.06,187.68,187.67,6.14887842]
[1755750461067,0.06,187.68,187.67,6.58887842]
[1755750461287,0.06,187.68,187.67,6.14887842]
[1755750461491,0.76,187.68,187.67,6.14887842]
[1755750461691,0.06,187.68,187.67,6.14887842]
[1755750463573,0.76,187.68,187.67,6.14887842]
[1755750464175,0.06,187.68,187.67,6.14887842]
[1755750465006,0.06,187.68,187.67,2.41999214]
[1755750465304,0.06,187.68,187.67,6.14887842]
[1755750467584,0.76,187.68,187.67,6.14887842]
[1755750467797,0.06,187.68,187.67,6.14887842]
[1755750470990,0.06,187.68,187.67,2.41999214]
[1755750471392,0.76,187.68,187.67,2.41999214]
[1755750473918,4.48888628,187.68,187.64,0.03]
[1755750474087,3.72888628,187.65,187.64,0.03]
[1755750474590,4.44888628,187.65,187.64,0.03]
[1755750475904,0.72,187.65,187.64,0.03]
[1755750480498,4.44888628,187.65,187.64,0.03]
[1755750481006,0.72,187.65,187.64,0.03]
[1755750482383,4.44888628,187.65,187.64,0.03]
[1755750483526,0.72,187.65,187.64,0.03]
[1755750487037,0.72,187.66,187.64,0.03]
[1755750487421,0.06,187.68,187.64,0.03]
[1755750487422,0.06,187.68,187.66,0.28432314]
[1755750487621,0.06,187.68,187.66,0.72432314]
[1755750488042,0.06,187.68,187.67,9.34171157]
[1755750488212,0.06,187.68,187.67,9.78171157]
[1755750488411,0.06,187.68,187.67,9.34171157]
[1755750490945,0.06,187.68,187.67,11.47737957]
[1755750493329,0.06,187.68,187.67,2.41999114]
[1755750493653,0.78,187.68,187.67,2.135668]
[1755750493856,0.06,187.68,187.67,5.86455428]
[1755750495048,0.06,187.68,187.67,11.47737957]
[1755750495356,0.06,187.68,187.67,37.47737957]
[1755750498356,0.06,187.68,187.67,37.91737957]
[1755750498655,0.06,187.68,187.67,11.91737957]
[1755750500161,0.06,187.68,187.67,11.47737957]
[1755750500639,0.06,187.68,187.67,11.91737957]
[1755750501174,0.06,187.68,187.67,49.51737957]
[1755750502465,0.06,187.68,187.67,63.11297358]
[1755750502664,0.06,187.69,187.68,13.87991715]
[1755750502841,0.06,187.69,187.68,97.84880343]
[1755750503378,0.06,187.69,187.68,99.98367343]
[1755750503952,0.06,187.7,187.68,99.98367343]
[1755750504148,0.06,187.7,187.69,41.61320942]
[1755750504479,0.06,187.7,187.69,42.05320942]
[1755750504663,0.06,187.7,187.69,49.51590077]
[1755750506877,0.06,187.7,187.69,11.91590077]
[1755750507047,0.06,187.7,187.69,49.05590077]
[1755750508445,0.06,187.7,187.69,6.00580485]
[1755750508767,0.78,187.7,187.69,43.44364328]
[1755750509155,0.78,187.7,187.69,43.72796642]
[1755750510072,0.78,187.7,187.69,43.58580485]
[1755750510440,0.78,187.7,187.69,43.72796642]
[1755750512470,0.06,187.7,187.69,43.72796642]
[1755750512667,0.06,187.7,187.69,49.05590077]
[1755750515247,0.06,187.7,187.69,142.89149478]
[1755750515972,0.06,187.7,187.69,63.09149478]
[1755750516342,0.06,187.71,187.7,13.87991715]
[1755750516574,0.06,187.72,187.7,18.04880343]
[1755750516746,0.06,187.72,187.71,41.59320942]
[1755750517170,0.06,187.72,187.71,43.72773842]
[1755750517360,0.06,187.72,187.71,49.0551051]
[1755750518258,0.78,187.72,187.71,69.58557685]
[1755750518571,0.78,187.72,187.7,41.30888628]
[1755750518775,0.78,187.72,187.71,0.28432314]
[1755750519163,0.78,187.72,187.7,43.44398428]
[1755750519164,0.78,187.72,187.7,39.715098]
[1755750519371,0.78,187.72,187.7,2.135098]
[1755750519572,4.50888628,187.72,187.7,2.135098]
[1755750519794,0.72,187.71,187.7,2.135098]
[1755750519949,0.72,187.71,187.69,0.28432314]
[1755750524189,4.44888628,187.71,187.68,37.58]
[1755750524356,0.72,187.7,187.66,63.86432314]
[1755750524555,4.44888628,187.7,187.66,63.86432314]
[1755750524750,3.72888628,187.7,187.66,63.86432314]
[1755750524969,0.72,187.69,187.66,67.59320942]
[1755750525173,0.72,187.68,187.67,4.01320942]
[1755750525970,0.72,187.68,187.67,0.28432314]
[1755750526482,0.72,187.68,187.67,4.01320942]
[1755750527984,0.78,187.72,187.68,0.28432314]
[1755750528287,0.72,187.71,187.69,3.72888628]
[1755750528797,0.06,187.72,187.69,3.72888628]
[1755750528962,0.06,187.72,187.7,3.72888628]
[1755750529291,0.72,187.71,187.7,3.72888628]
[1755750529460,0.72,187.71,187.68,37.86432314]
[1755750529660,0.72,187.71,187.7,3.72888628]
[1755750530173,0.72,187.71,187.7,4.01320942]
[1755750530586,0.06,187.72,187.7,4.01320942]
[1755750530886,0.78,187.72,187.7,4.01320942]
[1755750531495,0.72,187.71,187.7,4.01320942]
[1755750532469,0.72,187.71,187.7,0.28432314]
[1755750535390,0.72,187.71,187.68,79.8]
[1755750535578,0.67,187.7,187.68,79.8]
[1755750535783,0.73,187.72,187.69,4.01320942]
[1755750536488,0.06,187.72,187.71,0.28432314]
[1755750537278,0.06,187.72,187.71,4.01320942]
[1755750537462,0.73,187.72,187.71,4.01320942]
[1755750537865,0.06,187.72,187.71,4.01320942]
[1755750539075,0.73,187.72,187.7,4.01320942]
[1755750540181,0.06,187.72,187.7,4.01320942]
[1755750540394,0.67,187.71,187.7,0.28432314]
[1755750540592,0.06,187.72,187.7,0.28432314]
[1755750540799,0.73,187.72,187.7,0.28432314]
[1755750541506,0.67,187.71,187.7,0.28432314]
[1755750543098,0.67,187.71,187.69,117.38]
[1755750543494,0.67,187.7,187.69,117.66432314]
[1755750543700,0.67,187.7,187.69,79.8]
[1755750544081,0.06,187.72,187.7,26.0]
[1755750544283,0.06,187.72,187.71,55.18880343]
[1755750544497,0.06,187.72,187.71,55.62880343]
[1755750544681,0.06,187.72,187.71,57.76344543]
[1755750545403,0.06,187.72,187.71,63.09081211]
[1755750546486,0.06,187.72,187.71,3.72888628]
[1755750547075,0.06,187.72,187.71,41.45104785]
[1755750547587,0.06,187.72,187.71,41.59320942]
[1755750549670,0.73,187.72,187.71,41.59320942]
[1755750551121,0.73,187.72,187.71,37.86432314]
[1755750551284,0.73,187.72,187.71,41.59320942]
[1755750551481,0.73,187.72,187.7,0.03]
[1755750551788,3.72888628,187.71,187.7,0.03]
[1755750552186,4.39888628,187.71,187.7,0.03]
[1755750552780,0.67,187.71,187.7,0.03]
[1755750560391,4.39888628,187.71,187.7,0.03]
[1755750560593,0.67,187.71,187.7,0.03]
[1755750564408,0.73,187.71,187.7,0.03]
[1755750575524,0.06,187.71,187.7,4.48320942]
[1755750576905,0.06,187.71,187.7,9.81085992]
[1755750577307,0.06,187.71,187.7,6.61819442]
[1755750577507,0.06,187.71,187.7,11.94584492]
[1755750579206,0.06,187.71,187.7,6.17819442]
[1755750579944,0.06,187.71,187.7,11.94584492]
[1755750581335,0.06,187.71,187.7,91.74584492]
[1755750583733,0.06,187.71,187.7,85.97819442]
[1755750585537,0.06,187.71,187.7,91.74584492]
[1755750585840,0.06,187.71,187.7,85.97819442]
[1755750587128,0.06,187.71,187.7,83.84320942]
[1755750587465,0.06,187.71,187.7,85.97819442]